fUST/lending_fUST_20250212
["ID","MTS","AMOUNT","RATE_DAILY","PERIOD"]
[352810443,1739338243836,-500.0,0.00014198,2]
[352810444,1739338243845,-500.0,0.00014198,2]
[352810445,1739338243855,-500.0,0.00014198,2]
[352810446,1739338243865,-964.63,0.00014198,2]
[352810447,1739338243874,-500.0,0.00014199,2]
[352810448,1739338243884,-490.61,0.00014199,2]
[352810449,1739338243893,-500.0,0.00014199,2]
[352810450,1739338243903,-157.972972,0.00014199,2]
[352810451,1739338243912,-157.972972,0.00014199,2]
[352810452,1739338243922,-500.0,0.00014199,2]
[352810453,1739338243932,-500.0,0.00014199,2]
[352810454,1739338243941,-158.04,0.00014199,2]
[352810455,1739338243951,-158.093449,0.00014199,2]
[352810456,1739338243960,-1073.91,0.00014199,2]
[352810457,1739338243972,-216.067364,0.00014199,2]
[352810458,1739338243981,-9538.81,0.00014199,2]
[352810459,1739338243991,-500.0,0.00014199,2]
[352810460,1739338244000,-4473.88,0.00014199,2]
[352810461,1739338244011,-544.54,0.00014199,2]
[352810462,1739338244020,-151.0,0.00014199,2]
[352810463,1739338244030,-151.0,0.00014199,2]
[352810464,1739338244039,-151.0,0.00014199,2]
[352810465,1739338244050,-500.0,0.00014199,2]
[352810466,1739338244060,-151.0,0.00014199,2]
[352810467,1739338244070,-151.0,0.00014199,2]
[352810468,1739338244079,-152.024997,0.00014199,2]
[352810469,1739338244089,-151.862795,0.00014199,2]
[352810470,1739338244098,-500.0,0.00014199,2]
[352810471,1739338244108,-500.0,0.00014199,2]
[352810472,1739338244119,-151.0,0.00014199,2]
[352810473,1739338244132,-4273.61,0.00014199,2]
[352810474,1739338244142,-206.263594,0.00014199,2]
[352810475,1739338244152,-500.0,0.00014199,2]
[352810476,1739338244161,-151.0,0.00014199,2]
[352810477,1739338244170,-151.0,0.00014199,2]
[352810478,1739338244180,-151.0,0.000142,2]
[352810479,1739338244189,-500.0,0.000142,2]
[352810480,1739338244198,-151.0,0.000142,2]
[352810481,1739338244207,-500.0,0.00014282,2]
[352810482,1739338244217,-500.0,0.00014315,2]
[352810483,1739338244227,-1759.54,0.00014335,2]
[352810484,1739338244236,-1184.77,0.00014335,2]
[352810485,1739338244245,-1118.86,0.00014335,2]
[352810486,1739338244255,-500.0,0.00014335,2]
[352810487,1739338244264,-500.0,0.00014335,2]
[352810488,1739338244274,-500.0,0.00014335,2]
[352810489,1739338244283,-613.45,0.00014335,2]
[352810490,1739338244293,-500.0,0.00014335,2]
[352810491,1739338244302,-725.58,0.00014335,2]
[352810492,1739338244311,-644.22,0.00014335,2]
[352810493,1739338244321,-500.0,0.00014335,2]
[352810494,1739338244330,-500.0,0.00014335,2]
[352810495,1739338244340,-500.0,0.00014335,2]
[352810496,1739338244349,-500.0,0.00014335,2]
[352810497,1739338244359,-151.0,0.00014335,2]
[352810498,1739338244368,-500.0,0.00014335,2]
[352810499,1739338244378,-500.0,0.00014335,2]
[352810500,1739338244387,-500.0,0.00014335,2]
[352810501,1739338244397,-964.63,0.00014335,2]
[352810502,1739338244406,-500.0,0.00014336,2]
[352810503,1739338244415,-151.0,0.00014336,2]
[352810504,1739338244425,-500.0,0.00014336,2]
[352810505,1739338244436,-500.0,0.00014336,2]
[352810506,1739338244445,-500.0,0.00014336,2]
[352810507,1739338244454,-1073.91,0.00014336,2]
[352810508,1739338244463,-9538.81,0.00014336,2]
[352810509,1739338244473,-500.0,0.00014336,2]
[352810510,1739338244482,-4473.88,0.00014336,2]
[352810511,1739338244492,-544.54,0.00014336,2]
[352810512,1739338244503,-500.0,0.00014336,2]
[352810513,1739338244513,-500.0,0.00014336,2]
[352810514,1739338244523,-500.0,0.00014336,2]
[352810515,1739338244531,-4273.61,0.00014336,2]
[352810516,1739338244543,-500.0,0.00014336,2]
[352810517,1739338244553,-151.0,0.00014337,2]
[352810518,1739338244562,-500.0,0.00014337,2]
[352810519,1739338244571,-168.97889614,0.0001437,2]
[352810520,1739338244580,-500.0,0.00014407,2]
[352810521,1739338244590,-514.228614,0.00014407,2]
[352810522,1739338244599,-937.88843244,0.00014409,2]
[352810523,1739338244609,-1000.0,0.00014437,2]
[352810524,1739338244618,-500.0,0.00014438,2]
[352810525,1739338244628,-1759.54,0.00014472,2]
[352810526,1739338244637,-1184.77,0.00014472,2]
[352810527,1739338244646,-1118.86,0.00014472,2]
[352810528,1739338244655,-500.0,0.00014472,2]
[352810529,1739338244665,-500.0,0.00014472,2]
[352810530,1739338244674,-500.0,0.00014472,2]
[352810531,1739338244683,-613.45,0.00014472,2]
[352810532,1739338244692,-500.0,0.00014472,2]
[352810533,1739338244701,-725.58,0.00014472,2]
[352810534,1739338244711,-644.22,0.00014472,2]
[352810535,1739338244720,-500.0,0.00014472,2]
[352810536,1739338244729,-500.0,0.00014472,2]
[352810537,1739338244738,-500.0,0.00014472,2]
[352810538,1739338244747,-500.0,0.00014472,2]
[352810539,1739338244756,-500.0,0.00014472,2]
[352810540,1739338244766,-500.0,0.00014472,2]
[352810541,1739338244775,-500.0,0.00014472,2]
[352810542,1739338244784,-964.63,0.00014472,2]
[352810543,1739338244793,-151.0,0.00014473,2]
[352810544,1739338244803,-500.0,0.00014473,2]
[352810545,1739338244813,-500.0,0.00014473,2]
[352810546,1739338244824,-500.0,0.00014473,2]
[352810547,1739338244834,-500.0,0.00014473,2]
[352810548,1739338244845,-1073.91,0.00014473,2]
[352810549,1739338244854,-9538.81,0.00014473,2]
[352810550,1739338244863,-500.0,0.00014473,2]
[352810551,1739338244872,-4473.88,0.00014473,2]
[352810552,1739338244881,-544.54,0.00014473,2]
[352810553,1739338244891,-151.0,0.00014473,2]
[352810554,1739338244900,-151.0,0.00014473,2]
[352810555,1739338244909,-151.0,0.00014473,2]
[352810556,1739338244920,-500.0,0.00014473,2]
[352810557,1739338244929,-151.0,0.00014473,2]
[352810558,1739338244939,-151.0,0.00014473,2]
[352810559,1739338244948,-500.0,0.00014473,2]
[352810560,1739338244958,-500.0,0.00014473,2]
[352810561,1739338244968,-155.475813,0.00014473,2]
[352810562,1739338244981,-4273.61,0.00014473,2]
[352810563,1739338244991,-500.0,0.00014473,2]
[352810564,1739338245000,-151.0,0.00014474,2]
[352810565,1739338245010,-151.0,0.00014474,2]
[352810566,1739338245021,-500.0,0.00014474,2]
[352810567,1739338245030,-152.03741708,0.00014519,2]
[352810568,1739338245040,-500.0,0.00014541,2]
[352810569,1739338245052,-213.86967599,0.00014582,2]
[352810570,1739338245062,-1759.54,0.00014609,2]
[352810571,1739338245072,-1184.77,0.00014609,2]
[352810572,1739338245081,-1118.86,0.00014609,2]
[352810573,1739338245091,-500.0,0.00014609,2]
[352810574,1739338245100,-500.0,0.00014609,2]
[352810575,1739338245109,-500.0,0.00014609,2]
[352810576,1739338245119,-613.45,0.00014609,2]
[352810577,1739338245128,-500.0,0.00014609,2]
[352810578,1739338245138,-725.58,0.00014609,2]
[352810579,1739338245147,-644.22,0.00014609,2]
[352810580,1739338245156,-500.0,0.00014609,2]
[352810581,1739338245165,-500.0,0.00014609,2]
[352810582,1739338245175,-500.0,0.00014609,2]
[352810583,1739338245184,-500.0,0.00014609,2]
[352810584,1739338245194,-500.0,0.00014609,2]
[352810585,1739338245203,-500.0,0.00014609,2]
[352810586,1739338245212,-500.0,0.00014609,2]
[352810587,1739338245222,-964.63,0.00014609,2]
[352810588,1739338245231,-629.07215599,0.0001461,2]
[352810589,1739338245240,-151.0,0.0001461,2]
[352810590,1739338245250,-500.0,0.0001461,2]
[352810591,1739338245260,-151.0,0.0001461,2]
[352810592,1739338245269,-157.972972,0.0001461,2]
[352810593,1739338245279,-157.972972,0.0001461,2]
[352810594,1739338245288,-500.0,0.0001461,2]
[352810595,1739338245298,-500.0,0.0001461,2]
[352810596,1739338245307,-1073.91,0.0001461,2]
[352810597,1739338245316,-9538.81,0.0001461,2]
[352810598,1739338245325,-500.0,0.0001461,2]
[352810599,1739338245335,-4473.88,0.0001461,2]
[352810600,1739338245344,-544.54,0.0001461,2]
[352810601,1739338245353,-500.0,0.0001461,2]
[352810602,1739338245363,-500.0,0.0001461,2]
[352810603,1739338245372,-151.0,0.0001461,2]
[352810604,1739338245381,-4273.61,0.0001461,2]
[352810605,1739338245391,-500.0,0.0001461,2]
[352810606,1739338245400,-271.3095,0.00014611,2]
[352810607,1739338245409,-271.3095,0.00014611,2]
[352810608,1739338245419,-155.260489,0.00014611,2]
[352810609,1739338245428,-500.0,0.00014611,2]
[352810610,1739338245438,-9869.22482394,0.00014635,2]
[352810611,1739338245447,-162.568969,0.000147,4]
[352810612,1739338245456,-156.0,0.00014717,2]
[352810613,1739338245466,-156.0,0.00014717,2]
[352810614,1739338245475,-156.0,0.00014717,2]
[352810615,1739338245484,-156.0,0.00014717,2]
[352810616,1739338245494,-156.0,0.00014717,2]
[352810617,1739338245503,-156.0,0.00014717,2]
[352810618,1739338245513,-156.0,0.00014717,2]
[352810619,1739338245523,-156.0,0.00014717,2]
[352810620,1739338245532,-156.0,0.00014717,2]
[352810621,1739338245541,-156.0,0.00014717,2]
[352810622,1739338245551,-156.0,0.00014717,2]
[352810623,1739338245560,-156.0,0.00014717,2]
[352810624,1739338245570,-156.0,0.00014717,2]
[352810625,1739338245579,-156.0,0.00014717,2]
[352810626,1739338245590,-156.0,0.00014717,2]
[352810627,1739338245599,-156.0,0.00014717,2]
[352810628,1739338245608,-186.19,0.00014717,2]
[352810629,1739338245618,-206.2657544,0.00014731,2]
[352810630,1739338245627,-230.42079951,0.00014746,2]
[352810631,1739338245638,-1759.54,0.00014746,2]
[352810632,1739338245648,-1184.77,0.00014746,2]
[352810633,1739338245751,-1118.86,0.00014746,2]
[352810635,1739338245761,-500.0,0.00014746,2]
[352810637,1739338245771,-500.0,0.00014746,2]
[352810638,1739338245782,-500.0,0.00014746,2]
[352810639,1739338245791,-613.45,0.00014746,2]
[352810640,1739338245801,-500.0,0.00014746,2]
[352810641,1739338245811,-725.58,0.00014746,2]
[352810642,1739338245821,-644.22,0.00014746,2]
[352810643,1739338245831,-500.0,0.00014746,2]
[352810644,1739338245842,-500.0,0.00014746,2]
[352810645,1739338245851,-500.0,0.00014746,2]
[352810646,1739338245861,-500.0,0.00014746,2]
[352810647,1739338245870,-500.0,0.00014746,2]
[352810648,1739338245880,-154.02041928,0.00014746,2]
[352810649,1739338245890,-500.0,0.00014746,2]
[352810650,1739338245899,-964.63,0.00014746,2]
[352810651,1739338245908,-151.0,0.00014747,2]
[352810652,1739338245918,-500.0,0.00014747,2]
[352810653,1739338245928,-500.0,0.00014747,2]
[352810654,1739338245937,-500.0,0.00014747,2]
[352810655,1739338245947,-1073.91,0.00014747,2]
[352810656,1739338245958,-9538.81,0.00014747,2]
[352810657,1739338245968,-500.0,0.00014747,2]
[352810658,1739338245980,-4473.88,0.00014747,2]
[352810659,1739338245990,-544.54,0.00014747,2]
[352810660,1739338245999,-500.0,0.00014747,2]
[352810661,1739338246009,-500.0,0.00014747,2]
[352810662,1739338246019,-4273.61,0.00014747,2]
[352810663,1739338246028,-500.0,0.00014747,2]
[352810664,1739338246038,-500.0,0.00014748,2]
[352810665,1739338246049,-168.97889614,0.0001478,2]
[352810666,1739338246058,-200.0,0.000148,5]
[352810667,1739338246068,-200.0,0.000148,5]
[352810668,1739338246077,-200.0,0.000148,5]
[352810669,1739338246085,-200.0,0.000148,6]
[352810670,1739338246096,-200.0,0.000148,6]
[352810671,1739338246105,-200.0,0.000148,7]
[352810673,1739338246114,-200.0,0.000148,7]
[352810674,1739338246124,-200.0,0.000148,2]
[352810675,1739338246134,-200.0,0.000148,2]
[352810676,1739338246144,-151.0,0.000148,2]
[352810677,1739338246154,-151.0,0.000148,2]
[352810678,1739338246163,-151.0,0.000148,2]
[352810679,1739338246172,-151.0,0.000148,2]
[352810681,1739338246183,-151.0,0.000148,2]
[352810683,1739338246193,-151.775226,0.000148,2]
[352810684,1739338246202,-420.0,0.0001481,2]
[352810685,1739338246212,-575.42336901,0.0001483,2]
[352810686,1739338246221,-503.89903043,0.00014863,2]
[352810687,1739338246231,-151.0,0.00014879,2]
[352810689,1739338246240,-490.71683756,0.00014879,2]
[352810691,1739338246250,-50226.00692555,0.0001488,2]
[352810692,1739338246259,-271.3095,0.0001488,2]
[352810693,1739338246268,-271.3095,0.0001488,2]
[352810694,1739338246278,-151.0,0.0001488,2]
[352810695,1739338246287,-151.0,0.0001488,2]
[352810696,1739338246296,-490.0,0.0001488,2]
[352810698,1739338246306,-152.390034,0.0001488,2]
[352810699,1739338246315,-157.972972,0.0001488,2]
[352810700,1739338246324,-157.972972,0.0001488,2]
[352810701,1739338246334,-151.0,0.0001488,2]
[352810702,1739338246345,-1759.54,0.00014883,2]
[352810703,1739338246354,-1184.77,0.00014883,2]
[352810704,1739338246363,-1118.86,0.00014883,2]
[352810705,1739338246373,-500.0,0.00014883,2]
[352810706,1739338246382,-500.0,0.00014883,2]
[352810707,1739338246391,-500.0,0.00014883,2]
[352810708,1739338246401,-613.45,0.00014883,2]
[352810709,1739338246410,-500.0,0.00014883,2]
[352810710,1739338246419,-725.58,0.00014883,2]
[352810711,1739338246429,-644.22,0.00014883,2]
[352810712,1739338246439,-500.0,0.00014883,2]
[352810713,1739338246449,-500.0,0.00014883,2]
[352810714,1739338246458,-500.0,0.00014883,2]
[352810715,1739338246468,-500.0,0.00014883,2]
[352810716,1739338246477,-500.0,0.00014883,2]
[352810717,1739338246487,-500.0,0.00014883,2]
[352810718,1739338246496,-964.63,0.00014883,2]
[352810719,1739338246506,-500.0,0.00014884,2]
[352810720,1739338246515,-500.0,0.00014884,2]
[352810722,1739338246526,-500.0,0.00014884,2]
[352810723,1739338246535,-1073.91,0.00014884,2]
[352810724,1739338246545,-9538.81,0.00014884,2]
[352810725,1739338246554,-500.0,0.00014884,2]
[352810726,1739338246563,-4473.88,0.00014884,2]
[352810727,1739338246573,-544.54,0.00014884,2]
[352810728,1739338246583,-49.75642871,0.00014884,2]
[352810729,1739338246689,-101.24357129,0.00014884,2]
[352810730,1739338246699,-151.0,0.00014884,2]
[352810731,1739338246709,-177.581065,0.00014884,2]
[352810732,1739338246720,-244.0,0.00014884,2]
[352810733,1739338246730,-500.0,0.00014884,2]
[352810734,1739338246739,-500.0,0.00014884,2]
[352810735,1739338246749,-2057.28505331,0.00014884,2]
[352810736,1739338246775,-2216.32494669,0.00014884,2]
[352810737,1739338246786,-500.0,0.00014884,2]
[352810738,1739338246796,-500.0,0.00014885,2]
[352810739,1739338246806,-156.0,0.00014888,2]
[352810740,1739338246818,-156.0,0.00014888,2]
[352810741,1739338246827,-156.0,0.00014888,2]
[352810742,1739338246838,-156.0,0.00014888,2]
[352810743,1739338246848,-156.0,0.00014888,2]
[352810744,1739338246858,-156.0,0.00014888,2]
[352810745,1739338246868,-156.0,0.00014888,2]
[352810746,1739338246878,-291.41,0.00014888,2]
[352810747,1739338246888,-1978.56,0.00014888,2]
[352810748,1739338246898,-538.0,0.00014888,2]
[352810749,1739338246908,-2293.0,0.00014888,2]
[352810750,1739338246918,-10039.46768691,0.00014899,5]
[352810751,1739338246927,-7548.72800111,0.00014899,2]
[352810752,1739338246937,-300.0,0.000149,5]
[352810753,1739338246946,-151.0,0.000149,2]
[352810754,1739338246956,-151.0,0.000149,2]
[352810755,1739338246965,-937.88843244,0.00014906,2]
[352810756,1739338246979,-670.22211437,0.00014955,2]
[352810757,1739338246988,-80958.95619306,0.00014972,5]
[352810758,1739338246998,-500.0,0.00014973,2]
[352810759,1739338247008,-576.5719186,0.00014973,2]
[352810760,1739338247017,-500.0,0.00014973,2]
[352810761,1739338247027,-500.0,0.00014973,2]
[352810762,1739338247037,-500.0,0.00014973,2]
[352810763,1739338247048,-500.0,0.00014973,2]
[352810764,1739338247058,-521.74193075,0.00014973,2]
[352810765,1739338247068,-500.0,0.00014973,2]
[352810766,1739338247078,-1000.0,0.00014986,2]
[352810767,1739338247089,-247.0,0.00014997,2]
[352810768,1739338247098,-151.408,0.00014997,2]
[352810769,1739338247108,-3711.74474176,0.00014999,2]
[352810770,1739338247120,-1191.90761232,0.00014999,2]
[352810771,1739338247177,-501.96797484,0.00013514,2]
[352810772,1739338247187,-3423.94835159,0.00014999,2]
[352810773,1739338247198,-1050.0,0.00014999,2]
[352810774,1739338247210,-4614.62843554,0.00014999,2]
[352810775,1739338247256,-28493.77740911,0.00014999,2]
[352810776,1739338247267,-7534.7548638,0.00014999,2]
[352810778,1739338447326,622.74793,0.00016934,120]
[352810779,1739338599941,8823.1708813,0.00011,2]
[352810783,1739339014670,400.0,0.00010685,2]
[352810786,1739339228135,-150.35998969,0.00011369,4]
[352810787,1739339228157,-500.0,0.0001308,2]
[352810788,1739339228178,-638.3711794,0.00013278,2]
[352810789,1739339252110,-3153.61245412,0.00013278,2]
[352810790,1739339252134,-703.41632433,0.00013412,2]
[352810791,1739339252156,-169.54640108,0.00013413,2]
[352810792,1739339252179,-300.0,0.0001351,2]
[352810793,1739339252201,-500.0,0.00013511,2]
[352810794,1739339252225,-861.27,0.00013511,2]
[352810795,1739339252250,-500.0,0.00013511,2]
[352810796,1739339252273,-500.0,0.00013511,2]
[352810797,1739339252295,-500.0,0.00013511,2]
[352810798,1739339252320,-508.29520958,0.00013511,2]
[352810799,1739339252343,-500.0,0.00013511,2]
[352810800,1739339252368,-426.28249105,0.00013511,2]
[352810854,1739339432794,-168.87115619,0.00013413,2]
[352810875,1739339432960,-300.0,0.0001351,2]
[352810877,1739339432971,-989.24,0.00013511,2]
[352810880,1739339432982,-505.77102155,0.00013511,2]
[352810881,1739339432991,-500.0,0.00013511,2]
[352810883,1739339433001,-95.0885106,0.00013511,2]
[352810952,1739339438438,-404.9114894,0.00013511,2]
[352810953,1739339438454,-509.06823452,0.00013511,2]
[352810954,1739339438469,-500.0,0.00013511,2]
[352810955,1739339438482,-1812.92,0.00013511,2]
[352810956,1739339438496,-500.0,0.00013511,2]
[352810957,1739339438508,-500.0,0.00013511,2]
[352810958,1739339438518,-1229.19,0.00013511,2]
[352810959,1739339438528,-500.0,0.00013511,2]
[352810960,1739339438538,-500.0,0.00013511,2]
[352810961,1739339438551,-1147.66,0.00013511,2]
[352810962,1739339438564,-500.0,0.00013511,2]
[352810963,1739339438578,-500.0,0.00013511,2]
[352810964,1739339438593,-500.0,0.00013511,2]
[352810965,1739339438604,-500.0,0.00013511,2]
[352810966,1739339438615,-500.0,0.00013511,2]
[352810967,1739339438627,-500.0,0.00013511,2]
[352810968,1739339438640,-500.84,0.00013511,2]
[352810969,1739339438653,-500.0,0.00013511,2]
[352810970,1739339438665,-500.0,0.00013511,2]
[352810971,1739339438679,-737.01,0.00013511,2]
[352810972,1739339438690,-500.0,0.00013511,2]
[352810973,1739339438703,-635.81943593,0.00013511,2]
[352810974,1739339438714,-782.49,0.00013511,2]
[352810975,1739339438726,-500.0,0.00013511,2]
[352810976,1739339438737,-500.0,0.00013511,2]
[352810977,1739339438748,-500.0,0.00013511,2]
[352810978,1739339438760,-500.0,0.00013511,2]
[352810979,1739339438772,-500.0,0.00013511,2]
[352810980,1739339438783,-500.0,0.00013511,2]
[352810981,1739339438794,-500.0,0.00013511,2]
[352810982,1739339438805,-362.19803798,0.00013511,2]
[352810983,1739339438816,-825.38,0.00013511,2]
[352810984,1739339438828,-537.46,0.00013511,2]
[352810985,1739339438839,-500.0,0.00013511,2]
[352810986,1739339438851,-500.0,0.00013511,2]
[352810987,1739339438862,-500.0,0.00013511,2]
[352810988,1739339438873,-424.0836837,0.00013511,2]
[352810989,1739339438884,-500.0,0.00013511,2]
[352810990,1739339438895,-500.0,0.00013511,2]
[352810991,1739339438907,-500.0,0.00013511,2]
[352810992,1739339438917,-500.0,0.00013511,2]
[352810993,1739339438929,-500.0,0.00013511,2]
[352810994,1739339438941,-373.03,0.00013511,2]
[352810995,1739339438952,-500.0,0.00013511,2]
[352810996,1739339438963,-500.0,0.00013511,2]
[352810997,1739339438975,-500.0,0.00013511,2]
[352810998,1739339438987,-500.0,0.00013511,2]
[352810999,1739339438999,-500.0,0.00013511,2]
[352811000,1739339439011,-500.0,0.00013511,2]
[352811001,1739339439022,-500.0,0.00013511,2]
[352811002,1739339439034,-500.0,0.00013511,2]
[352811003,1739339439045,-523.67543609,0.00013511,2]
[352811004,1739339439056,-500.0,0.00013511,2]
[352811005,1739339439068,-500.0,0.00013511,2]
[352811006,1739339439080,-500.0,0.00013511,2]
[352811007,1739339439091,-500.0,0.00013511,2]
[352811008,1739339439103,-500.0,0.00013511,2]
[352811009,1739339439114,-500.0,0.00013511,2]
[352811010,1739339439125,-413.35186928,0.00013511,2]
[352811011,1739339439137,-500.0,0.00013511,2]
[352811012,1739339439148,-500.0,0.00013511,2]
[352811013,1739339439160,-500.0,0.00013511,2]
[352811014,1739339439172,-500.0,0.00013511,2]
[352811015,1739339439184,-500.0,0.00013511,2]
[352811016,1739339439195,-500.0,0.00013511,2]
[352811017,1739339439209,-500.0,0.00013511,2]
[352811018,1739339439222,-500.0,0.00013511,2]
[352811019,1739339439233,-500.0,0.00013511,2]
[352811020,1739339439243,-500.0,0.00013511,2]
[352811021,1739339439254,-500.0,0.00013511,2]
[352811022,1739339439265,-500.0,0.00013511,2]
[352811023,1739339439275,-500.0,0.00013511,2]
[352811024,1739339439285,-156.17314095,0.00013511,2]
[352811025,1739339439475,-500.0,0.00013511,2]
[352811026,1739339439495,-500.0,0.00013511,2]
[352811027,1739339439505,-278.81721777,0.00013511,2]
[352811028,1739339439514,-500.0,0.00013511,2]
[352811029,1739339439524,-500.0,0.00013511,2]
[352811030,1739339439533,-500.0,0.00013511,2]
[352811031,1739339439543,-500.0,0.00013511,2]
[352811032,1739339439552,-500.0,0.00013511,2]
[352811033,1739339439562,-500.0,0.00013511,2]
[352811034,1739339439571,-500.0,0.00013511,2]
[352811035,1739339439581,-500.0,0.00013511,2]
[352811036,1739339439591,-500.0,0.00013511,2]
[352811037,1739339439600,-500.0,0.00013511,2]
[352811038,1739339439610,-500.0,0.00013511,2]
[352811039,1739339439620,-500.0,0.00013511,2]
[352811040,1739339439630,-232.50591852,0.00013511,2]
[352811041,1739339439639,-500.0,0.00013511,2]
[352811042,1739339439649,-500.0,0.00013511,2]
[352811043,1739339439658,-500.0,0.00013511,2]
[352811044,1739339439668,-500.0,0.00013511,2]
[352811045,1739339439677,-500.0,0.00013511,2]
[352811046,1739339439686,-500.0,0.00013511,2]
[352811047,1739339439696,-500.0,0.00013511,2]
[352811048,1739339439706,-500.0,0.00013511,2]
[352811049,1739339439715,-500.0,0.00013511,2]
[352811050,1739339439725,-500.0,0.00013511,2]
[352811051,1739339439734,-500.0,0.00013511,2]
[352811052,1739339439744,-500.0,0.00013511,2]
[352811053,1739339439753,-500.0,0.00013511,2]
[352811054,1739339439764,-500.0,0.00013511,2]
[352811055,1739339439773,-500.0,0.00013511,2]
[352811056,1739339439783,-500.0,0.00013511,2]
[352811057,1739339439792,-500.0,0.00013511,2]
[352811058,1739339439801,-500.0,0.00013511,2]
[352811059,1739339439811,-500.0,0.00013511,2]
[352811060,1739339439821,-500.0,0.00013511,2]
[352811061,1739339439830,-500.0,0.00013511,2]
[352811062,1739339439840,-500.0,0.00013511,2]
[352811063,1739339439850,-500.0,0.00013511,2]
[352811064,1739339439859,-500.0,0.00013511,2]
[352811065,1739339439868,-948.02,0.00013511,2]
[352811066,1739339439878,-500.0,0.00013511,2]
[352811067,1739339439888,-171.39127815,0.00013512,2]
[352811068,1739339439897,-500.0,0.00013512,2]
[352811069,1739339439907,-161.82735539,0.00013512,2]
[352811070,1739339439917,-500.0,0.00013512,2]
[352811071,1739339439927,-500.0,0.00013512,2]
[352811072,1739339439937,-500.0,0.00013512,2]
[352811073,1739339439947,-500.0,0.00013512,2]
[352811074,1739339439958,-500.0,0.00013512,2]
[352811075,1739339439968,-500.0,0.00013512,2]
[352811076,1739339439979,-500.0,0.00013512,2]
[352811078,1739339439988,-500.0,0.00013512,2]
[352811080,1739339439997,-500.0,0.00013512,2]
[352811082,1739339440007,-500.0,0.00013512,2]
[352811083,1739339440016,-500.0,0.00013512,2]
[352811084,1739339440029,-500.0,0.00013512,2]
[352811085,1739339440040,-500.0,0.00013512,2]
[352811086,1739339440050,-500.0,0.00013512,2]
[352811087,1739339440059,-500.0,0.00013512,2]
[352811088,1739339440069,-500.0,0.00013512,2]
[352811089,1739339440079,-500.0,0.00013512,2]
[352811090,1739339440088,-500.0,0.00013512,2]
[352811091,1739339440098,-500.0,0.00013512,2]
[352811092,1739339440108,-500.0,0.00013512,2]
[352811093,1739339440118,-500.0,0.00013512,2]
[352811094,1739339440128,-500.0,0.00013512,2]
[352811095,1739339440137,-500.0,0.00013512,2]
[352811096,1739339440147,-567.03,0.00013512,2]
[352811097,1739339440157,-500.0,0.00013512,2]
[352811098,1739339440167,-500.0,0.00013512,2]
[352811099,1739339440177,-500.0,0.00013512,2]
[352811100,1739339440186,-500.0,0.00013512,2]
[352811101,1739339440196,-507.00901843,0.00013512,2]
[352811102,1739339440206,-500.0,0.00013512,2]
[352811103,1739339440216,-500.0,0.00013512,2]
[352811104,1739339440227,-500.0,0.00013512,2]
[352811105,1739339440237,-507.09090585,0.00013512,2]